[Event "Early-Titled-Tuesday-Blitz-May-14-2024"]
[Site "Chess.com"]
[Date "2024.05.14"]
[Round "1"]
[White "Renatoforf"]
[Black "lucasran"]
[Result "0-1"]
[WhiteElo "1935"]
[BlackElo "2552"]
[TimeControl "180+1"]
[EndTime "8:09:41 PDT"]
[Termination "lucasran won by checkmate"]

1. e4 {[%clk 0:02:57.9]} 1... c6 {[%clk 0:02:58.4]} 2. Nf3 {[%clk 0:02:56.6]}
2... d5 {[%clk 0:02:59.3]} 3. exd5 {[%clk 0:02:56.9]} 3... cxd5 {[%clk
0:03:00.2]} 4. Ne5 {[%clk 0:02:56.6]} 4... Nc6 {[%clk 0:02:59.5]} 5. d4 {[%clk
0:02:57]} 5... e6 {[%clk 0:02:58]} 6. c3 {[%clk 0:02:54.7]} 6... Bd6 {[%clk
0:02:57.8]} 7. f4 {[%clk 0:02:53.6]} 7... Nge7 {[%clk 0:02:43.6]} 8. Bd3 {[%clk
0:02:52.2]} 8... O-O {[%clk 0:02:21.3]} 9. O-O {[%clk 0:02:50.9]} 9... g6 {[%clk
0:02:06.5]} 10. Nd2 {[%clk 0:02:48.3]} 10... f6 {[%clk 0:02:06.6]} 11. Nxc6
{[%clk 0:02:44.4]} 11... Nxc6 {[%clk 0:02:00.9]} 12. Nf3 {[%clk 0:02:41.6]}
12... Bd7 {[%clk 0:02:00.7]} 13. Re1 {[%clk 0:02:36.1]} 13... Qe7 {[%clk
0:01:42.1]} 14. Qe2 {[%clk 0:02:34.1]} 14... Rae8 {[%clk 0:01:40]} 15. Bd2
{[%clk 0:02:32.1]} 15... Qg7 {[%clk 0:01:39.2]} 16. Qf2 {[%clk 0:02:29.7]} 16...
a6 {[%clk 0:01:39.2]} 17. Qh4 {[%clk 0:02:27.5]} 17... Ne7 {[%clk 0:01:37.7]}
18. Re2 {[%clk 0:02:23.3]} 18... Nf5 {[%clk 0:01:37.8]} 19. Bxf5 {[%clk
0:02:21.6]} 19... exf5 {[%clk 0:01:38]} 20. Rae1 {[%clk 0:02:19.8]} 20... Re4
{[%clk 0:01:37.9]} 21. Bc1 {[%clk 0:02:09.2]} 21... Rfe8 {[%clk 0:01:38.3]} 22.
Qf2 {[%clk 0:01:59.4]} 22... Bb5 {[%clk 0:01:37.8]} 23. Re3 {[%clk 0:01:55.5]}
23... Rxe3 {[%clk 0:01:13.2]} 24. Rxe3 {[%clk 0:01:52.2]} 24... Re4 {[%clk
0:01:12.2]} 25. Rxe4 {[%clk 0:01:49]} 25... fxe4 {[%clk 0:01:13.1]} 26. Nd2
{[%clk 0:01:46.6]} 26... f5 {[%clk 0:01:11.2]} 27. Nf1 {[%clk 0:01:45.1]} 27...
Bc4 {[%clk 0:01:07.1]} 28. b3 {[%clk 0:01:43.7]} 28... Bd3 {[%clk 0:01:07.5]}
29. Ne3 {[%clk 0:01:43.4]} 29... Qf7 {[%clk 0:01:08.1]} 30. Bd2 {[%clk
0:01:32.1]} 30... Be7 {[%clk 0:01:08]} 31. g4 {[%clk 0:01:25.1]} 31... Kh8
{[%clk 0:00:46.2]} 32. gxf5 {[%clk 0:01:23.4]} 32... gxf5 {[%clk 0:00:47.1]} 33.
Qg3 {[%clk 0:01:21.9]} 33... Bb5 {[%clk 0:00:46.3]} 34. Kf2 {[%clk 0:01:10.5]}
34... Bd7 {[%clk 0:00:46.5]} 35. h4 {[%clk 0:01:00.5]} 35... Be6 {[%clk
0:00:44.5]} 36. Ng2 {[%clk 0:00:53.9]} 36... Qf8 {[%clk 0:00:44.6]} 37. Be3
{[%clk 0:00:51.1]} 37... Qc8 {[%clk 0:00:43.7]} 38. c4 {[%clk 0:00:46]} 38...
Bf6 {[%clk 0:00:30.7]} 39. c5 {[%clk 0:00:44.8]} 39... Bf7 {[%clk 0:00:27.7]}
40. Qh3 {[%clk 0:00:33]} 40... Bh5 {[%clk 0:00:28]} 41. Ne1 {[%clk 0:00:27.3]}
41... Bg4 {[%clk 0:00:27.8]} 42. Qg3 {[%clk 0:00:25.6]} 42... Qd8 {[%clk
0:00:28.1]} 43. Ng2 {[%clk 0:00:24]} 43... Bf3 {[%clk 0:00:28.5]} 44. Kg1 {[%clk
0:00:20.8]} 44... Bxg2 {[%clk 0:00:28.6]} 45. Kxg2 {[%clk 0:00:20.2]} 45... Bxh4
{[%clk 0:00:28.7]} 46. Qh3 {[%clk 0:00:19.4]} 46... Qg8+ {[%clk 0:00:24.4]} 47.
Kh2 {[%clk 0:00:18.3]} 47... Qg4 {[%clk 0:00:23.9]} 48. Qxg4 {[%clk 0:00:16]}
48... fxg4 {[%clk 0:00:24.8]} 49. Kg2 {[%clk 0:00:15.2]} 49... Kg7 {[%clk
0:00:22.1]} 50. b4 {[%clk 0:00:15.7]} 50... Bd8 {[%clk 0:00:21]} 51. a4 {[%clk
0:00:15.7]} 51... Kf7 {[%clk 0:00:19.6]} 52. Kg3 {[%clk 0:00:15.4]} 52... h5
{[%clk 0:00:19.7]} 53. b5 {[%clk 0:00:16]} 53... axb5 {[%clk 0:00:19.9]} 54.
axb5 {[%clk 0:00:15.6]} 54... Ke6 {[%clk 0:00:14.7]} 55. b6 {[%clk 0:00:12.2]}
55... Kf5 {[%clk 0:00:12.9]} 56. Kg2 {[%clk 0:00:10.3]} 56... h4 {[%clk
0:00:13.3]} 57. Kh2 {[%clk 0:00:09.6]} 57... Ke6 {[%clk 0:00:13.8]} 58. Kg2
{[%clk 0:00:09.6]} 58... Kd7 {[%clk 0:00:12.5]} 59. Kh2 {[%clk 0:00:10.1]} 59...
Ke6 {[%clk 0:00:08]} 60. Kg2 {[%clk 0:00:10.6]} 60... Kf5 {[%clk 0:00:08.4]} 61.
Kh2 {[%clk 0:00:11.1]} 61... h3 {[%clk 0:00:07.7]} 62. Kg3 {[%clk 0:00:10.7]}
62... Be7 {[%clk 0:00:06.2]} 63. Kh2 {[%clk 0:00:10.2]} 63... Bf8 {[%clk
0:00:06.8]} 64. Kg3 {[%clk 0:00:10.6]} 64... Ke6 {[%clk 0:00:04.4]} 65. Bf2
{[%clk 0:00:10.1]} 65... Kd7 {[%clk 0:00:03.4]} 66. Be3 {[%clk 0:00:10.6]} 66...
Be7 {[%clk 0:00:03.4]} 67. Kh2 {[%clk 0:00:10.3]} 67... Bh4 {[%clk 0:00:03.2]}
68. Bg1 {[%clk 0:00:08.2]} 68... Kc6 {[%clk 0:00:03.6]} 69. Be3 {[%clk
0:00:07.1]} 69... Kb5 {[%clk 0:00:03.9]} 70. f5 {[%clk 0:00:07.3]} 70... Kc6
{[%clk 0:00:02.3]} 71. Bf4 {[%clk 0:00:06.2]} 71... Bf6 {[%clk 0:00:02.7]} 72.
Be5 {[%clk 0:00:05.2]} 72... Bxe5+ {[%clk 0:00:03.3]} 73. dxe5 {[%clk
0:00:04.7]} 73... Kxc5 {[%clk 0:00:04.2]} 74. f6 {[%clk 0:00:04.8]} 74... e3
{[%clk 0:00:03.6]} 75. f7 {[%clk 0:00:05.4]} 75... e2 {[%clk 0:00:03.9]} 76.
f8=Q+ {[%clk 0:00:05.6]} 76... Kd4 {[%clk 0:00:04]} 77. Qb8 {[%clk 0:00:05.3]}
77... e1=Q {[%clk 0:00:03.6]} 78. Qc7 {[%clk 0:00:03.8]} 78... Qxe5+ {[%clk
0:00:03.9]} 79. Qxe5+ {[%clk 0:00:02.9]} 79... Kxe5 {[%clk 0:00:04.8]} 80. Kg3
{[%clk 0:00:02.5]} 80... d4 {[%clk 0:00:05.4]} 81. Kh2 {[%clk 0:00:02.7]} 81...
d3 {[%clk 0:00:06]} 82. Kg3 {[%clk 0:00:03.3]} 82... d2 {[%clk 0:00:06.9]} 83.
Kxg4 {[%clk 0:00:02.8]} 83... d1=Q+ {[%clk 0:00:06.7]} 84. Kxh3 {[%clk
0:00:03.3]} 84... Qg1 {[%clk 0:00:07]} 85. Kh4 {[%clk 0:00:03]} 85... Kf4 {[%clk
0:00:07.9]} 86. Kh5 {[%clk 0:00:03.5]} 86... Qg5# {[%clk 0:00:06.6]} 0-1

[Event "Early-Titled-Tuesday-Blitz-May-14-2024"]
[Site "Chess.com"]
[Date "2024.05.14"]
[Round "1"]
[White "JERO-8914"]
[Black "GothamChess"]
[Result "0-1"]
[WhiteElo "2402"]
[BlackElo "2724"]
[TimeControl "180+1"]
[EndTime "8:10:37 PDT"]
[Termination "GothamChess won by resignation"]

1. e4 {[%clk 0:02:58.7]} 1... d5 {[%clk 0:02:58.7]} 2. exd5 {[%clk 0:02:52.8]}
2... Qxd5 {[%clk 0:02:59.6]} 3. d4 {[%clk 0:02:51.8]} 3... e5 {[%clk 0:02:57.7]}
4. Nf3 {[%clk 0:02:48.8]} 4... exd4 {[%clk 0:02:53.8]} 5. Qxd4 {[%clk
0:02:47.5]} 5... Qxd4 {[%clk 0:02:53.1]} 6. Nxd4 {[%clk 0:02:44.6]} 6... a6
{[%clk 0:02:53.4]} 7. c4 {[%clk 0:02:42.3]} 7... Nf6 {[%clk 0:02:46.3]} 8. Nc3
{[%clk 0:02:41.9]} 8... Bb4 {[%clk 0:02:42.2]} 9. Bd2 {[%clk 0:02:35.6]} 9...
O-O {[%clk 0:02:39.6]} 10. Be2 {[%clk 0:02:30.4]} 10... Rd8 {[%clk 0:02:15.1]}
11. Nc2 {[%clk 0:02:28]} 11... Bd6 {[%clk 0:01:51.8]} 12. Be3 {[%clk 0:02:15.6]}
12... Nc6 {[%clk 0:01:49.8]} 13. O-O {[%clk 0:02:13]} 13... Ng4 {[%clk
0:01:48.4]} 14. Bxg4 {[%clk 0:02:11.8]} 14... Bxg4 {[%clk 0:01:49.3]} 15. h3
{[%clk 0:02:11.6]} 15... Bf5 {[%clk 0:01:47.4]} 16. Nd4 {[%clk 0:02:06.6]} 16...
Nxd4 {[%clk 0:01:47.3]} 17. Bxd4 {[%clk 0:02:07.5]} 17... Bd3 {[%clk 0:01:47.2]}
18. Rfd1 {[%clk 0:02:05.1]} 18... Bxc4 {[%clk 0:01:47.3]} 19. Ne4 {[%clk
0:02:03.5]} 19... Bf8 {[%clk 0:01:38.2]} 20. b3 {[%clk 0:01:54.9]} 20... Bd5
{[%clk 0:01:36.8]} 21. Nc3 {[%clk 0:01:49.3]} 21... c6 {[%clk 0:01:35.4]} 22.
Rac1 {[%clk 0:01:43]} 22... Ba3 {[%clk 0:01:30.9]} 23. Rb1 {[%clk 0:01:26.7]}
23... Be6 {[%clk 0:01:19.4]} 24. Bb6 {[%clk 0:01:22.5]} 24... Rxd1+ {[%clk
0:01:09.1]} 25. Rxd1 {[%clk 0:01:23.4]} 25... Be7 {[%clk 0:01:05.9]} 26. Ne4
{[%clk 0:01:21.6]} 26... Bd5 {[%clk 0:01:03.2]} 27. Nc5 {[%clk 0:01:17]} 27...
Rb8 {[%clk 0:00:54.4]} 28. Nd7 {[%clk 0:01:11.9]} 28... Rc8 {[%clk 0:00:49.4]}
29. Re1 {[%clk 0:01:10]} 29... Bb4 {[%clk 0:00:42.2]} 30. Re3 {[%clk 0:01:04.5]}
30... h6 {[%clk 0:00:28.2]} 31. Bc5 {[%clk 0:01:01.8]} 31... Bd2 {[%clk
0:00:19.5]} 32. Re2 {[%clk 0:00:59.7]} 32... Bf4 {[%clk 0:00:18.4]} 33. Nb6
{[%clk 0:00:55.8]} 33... Rd8 {[%clk 0:00:17.3]} 34. Be7 {[%clk 0:00:54.6]} 34...
Re8 {[%clk 0:00:16.5]} 35. Nxd5 {[%clk 0:00:53]} 35... cxd5 {[%clk 0:00:17.4]}
36. Kf1 {[%clk 0:00:51.8]} 36... f6 {[%clk 0:00:14]} 37. g3 {[%clk 0:00:48.7]}
37... Bc7 {[%clk 0:00:12.3]} 38. Bc5 {[%clk 0:00:47.1]} 38... Rxe2 {[%clk
0:00:11.8]} 39. Kxe2 {[%clk 0:00:48]} 39... Kf7 {[%clk 0:00:12.1]} 40. g4 {[%clk
0:00:43.5]} 40... g6 {[%clk 0:00:12.2]} 41. Kd3 {[%clk 0:00:41.9]} 41... Ke6
{[%clk 0:00:11.9]} 42. f3 {[%clk 0:00:39.3]} 42... h5 {[%clk 0:00:11]} 43. Bf2
{[%clk 0:00:36.9]} 43... Be5 {[%clk 0:00:09.5]} 44. a4 {[%clk 0:00:35.8]} 44...
f5 {[%clk 0:00:09.6]} 45. gxh5 {[%clk 0:00:33.7]} 45... gxh5 {[%clk 0:00:09.7]}
46. Be3 {[%clk 0:00:32.6]} 46... Kd6 {[%clk 0:00:09.6]} 47. Bf2 {[%clk
0:00:30.5]} 47... Kc6 {[%clk 0:00:09.9]} 48. Be1 {[%clk 0:00:28.7]} 48... Kc5
{[%clk 0:00:09.2]} 49. Bd2 {[%clk 0:00:27.5]} 49... Bg3 {[%clk 0:00:06.2]} 50.
Ke3 {[%clk 0:00:26.1]} 50... Bc7 {[%clk 0:00:02.7]} 51. Kd3 {[%clk 0:00:24.8]}
51... b5 {[%clk 0:00:03.2]} 52. axb5 {[%clk 0:00:23.3]} 52... Kxb5 {[%clk
0:00:04]} 53. Kd4 {[%clk 0:00:22.2]} 53... Kc6 {[%clk 0:00:04]} 54. Be3 {[%clk
0:00:20.4]} 54... Bd6 {[%clk 0:00:04.2]} 55. Kd3 {[%clk 0:00:20.5]} 55... Bc5
{[%clk 0:00:04.8]} 56. Bf4 {[%clk 0:00:17.3]} 56... Kb5 {[%clk 0:00:05]} 57. Bd2
{[%clk 0:00:17.6]} 57... Bb6 {[%clk 0:00:04.5]} 58. Bc3 {[%clk 0:00:17.1]} 58...
a5 {[%clk 0:00:02]} 59. Bd2 {[%clk 0:00:17.4]} 59... Bc7 {[%clk 0:00:02.3]} 60.
Bc3 {[%clk 0:00:17]} 60... Bf4 {[%clk 0:00:02.5]} 61. Be1 {[%clk 0:00:17]} 61...
Be5 {[%clk 0:00:02.3]} 62. Bd2 {[%clk 0:00:17.2]} 62... Kc6 {[%clk 0:00:01.9]}
63. Be3 {[%clk 0:00:16.3]} 63... Kb5 {[%clk 0:00:02.3]} 64. Bd2 {[%clk
0:00:16.8]} 64... Bd6 {[%clk 0:00:02.9]} 65. Be1 {[%clk 0:00:16.7]} 65... Bc5
{[%clk 0:00:03.4]} 66. Bd2 {[%clk 0:00:16.9]} 66... a4 {[%clk 0:00:03.4]} 67.
bxa4+ {[%clk 0:00:17]} 67... Kxa4 {[%clk 0:00:04.3]} 68. Be1 {[%clk 0:00:15.5]}
68... Kb3 {[%clk 0:00:04.4]} 69. Bd2 {[%clk 0:00:15.9]} 69... Kb2 {[%clk
0:00:03.5]} 70. Bg5 {[%clk 0:00:15.8]} 70... Bb6 {[%clk 0:00:02.9]} 71. Bd2
{[%clk 0:00:16]} 71... Kb1 {[%clk 0:00:03]} 72. Bg5 {[%clk 0:00:16]} 72... Kb2
{[%clk 0:00:03.4]} 73. Bd2 {[%clk 0:00:16]} 73... Kb3 {[%clk 0:00:03.7]} 74. Bg5
{[%clk 0:00:16.3]} 74... Kb4 {[%clk 0:00:03.3]} 75. Bd2+ {[%clk 0:00:16.5]}
75... Kb5 {[%clk 0:00:03.8]} 76. Be1 {[%clk 0:00:16]} 76... Kc6 {[%clk
0:00:03.8]} 77. Bg3 {[%clk 0:00:16]} 77... Kd7 {[%clk 0:00:02.6]} 78. Bf4 {[%clk
0:00:16.3]} 78... Ke6 {[%clk 0:00:02.9]} 79. Bg3 {[%clk 0:00:14.7]} 79... Bc5
{[%clk 0:00:02.8]} 80. Bf4 {[%clk 0:00:14.7]} 80... Bd6 {[%clk 0:00:03.1]} 81.
Bd2 {[%clk 0:00:14.3]} 81... Be5 {[%clk 0:00:02.8]} 82. Be3 {[%clk 0:00:14.5]}
82... Kf6 {[%clk 0:00:03.3]} 83. Bh6 {[%clk 0:00:13.7]} 83... Kg6 {[%clk
0:00:03.3]} 84. Be3 {[%clk 0:00:13.7]} 84... Kf6 {[%clk 0:00:03.7]} 85. Bh6
{[%clk 0:00:13.5]} 85... f4 {[%clk 0:00:04]} 86. Bf8 {[%clk 0:00:13.7]} 86...
Kf7 {[%clk 0:00:03.7]} 87. Bc5 {[%clk 0:00:12.9]} 87... Ke6 {[%clk 0:00:04.1]}
88. Bf2 {[%clk 0:00:13.5]} 88... Kf5 {[%clk 0:00:04.7]} 89. Bh4 {[%clk
0:00:13.8]} 89... Bf6 {[%clk 0:00:04.7]} 90. Bf2 {[%clk 0:00:14.5]} 90... Ke6
{[%clk 0:00:05.2]} 91. Be1 {[%clk 0:00:14.5]} 91... Kd6 {[%clk 0:00:03.8]} 92.
Bf2 {[%clk 0:00:14.9]} 92... Kc6 {[%clk 0:00:03.9]} 93. Be1 {[%clk 0:00:14.8]}
93... Kb5 {[%clk 0:00:04.2]} 94. Bf2 {[%clk 0:00:15.3]} 94... Kb4 {[%clk
0:00:04.4]} 95. Be1+ {[%clk 0:00:16]} 95... Kb3 {[%clk 0:00:04.9]} 96. Bf2
{[%clk 0:00:16.7]} 96... Kb2 {[%clk 0:00:05.5]} 97. Be1 {[%clk 0:00:17.2]} 97...
Kc1 {[%clk 0:00:05.9]} 98. Ba5 {[%clk 0:00:11.4]} 98... Kd1 {[%clk 0:00:05.2]}
99. Bc7 {[%clk 0:00:11.1]} 99... Bg5 {[%clk 0:00:05.3]} 100. Ba5 {[%clk
0:00:10.8]} 100... Bh6 {[%clk 0:00:04.6]} 101. Bd2 {[%clk 0:00:11]} 101... Bg5
{[%clk 0:00:04.3]} 102. Ba5 {[%clk 0:00:11.4]} 102... Bf6 {[%clk 0:00:02.6]}
103. Bd2 {[%clk 0:00:11.5]} 103... Be5 {[%clk 0:00:03.2]} 104. Ba5 {[%clk
0:00:11.8]} 104... Bd6 {[%clk 0:00:03.7]} 105. Bd2 {[%clk 0:00:12]} 105... Be5
{[%clk 0:00:03.3]} 106. Ba5 {[%clk 0:00:12.2]} 106... Kc1 {[%clk 0:00:03.9]}
107. Bd2+ {[%clk 0:00:12.4]} 107... Kb1 {[%clk 0:00:04.2]} 108. Be1 {[%clk
0:00:13]} 108... Kc1 {[%clk 0:00:04.6]} 109. Bd2+ {[%clk 0:00:13.5]} 109... Kb2
{[%clk 0:00:05.3]} 110. Ba5 {[%clk 0:00:14.2]} 110... Kb3 {[%clk 0:00:05.9]}
111. Bd2 {[%clk 0:00:14.9]} 111... Ka4 {[%clk 0:00:06.2]} 112. Bc1 {[%clk
0:00:15.6]} 112... Kb5 {[%clk 0:00:06.8]} 113. Bd2 {[%clk 0:00:16.5]} 113... Kc5
{[%clk 0:00:07.2]} 114. Be1 {[%clk 0:00:17.2]} 114... Kd6 {[%clk 0:00:07.9]}
115. Bd2 {[%clk 0:00:17.8]} 115... Ke6 {[%clk 0:00:08.4]} 116. Be1 {[%clk
0:00:17.7]} 116... Bd6 {[%clk 0:00:08.7]} 117. Bh4 {[%clk 0:00:18.3]} 117... Bc5
{[%clk 0:00:08.4]} 118. Be1 {[%clk 0:00:18.5]} 118... Be3 {[%clk 0:00:09.1]}
119. Bh4 {[%clk 0:00:18.7]} 119... Kf5 {[%clk 0:00:09.7]} 120. Bd8 {[%clk
0:00:18.1]} 120... Ke5 {[%clk 0:00:07.5]} 121. Be7 {[%clk 0:00:18.4]} 121... Ke6
{[%clk 0:00:07.7]} 122. Bh4 {[%clk 0:00:17.1]} 122... Kd6 {[%clk 0:00:07.5]}
123. Be1 {[%clk 0:00:14.2]} 123... Kc5 {[%clk 0:00:07.5]} 124. Bh4 {[%clk
0:00:14.4]} 124... Kb4 {[%clk 0:00:06.2]} 125. Bf6 {[%clk 0:00:14.6]} 125... Kb3
{[%clk 0:00:06.5]} 126. Be5 {[%clk 0:00:13.8]} 126... Ka2 {[%clk 0:00:06]} 127.
Bc3 {[%clk 0:00:13.9]} 127... Kb1 {[%clk 0:00:06.3]} 128. Be1 {[%clk 0:00:14.3]}
128... Kc1 {[%clk 0:00:06.5]} 129. Bh4 {[%clk 0:00:14.2]} 129... Kd1 {[%clk
0:00:06.2]} 130. Bf6 {[%clk 0:00:12.4]} 130... Ke1 {[%clk 0:00:06.5]} 131. h4
{[%clk 0:00:12.3]} 131... Kf2 {[%clk 0:00:06.9]} 132. Bg5 {[%clk 0:00:11.3]}
132... Kxf3 {[%clk 0:00:06.7]} 0-1

[Event "Early-Titled-Tuesday-Blitz-May-14-2024"]
[Site "Chess.com"]
[Date "2024.05.14"]
[Round "2"]
[White "Trovita84"]
[Black "whiteglovethief"]
[Result "1-0"]
[WhiteElo "2148"]
[BlackElo "2453"]
[TimeControl "180+1"]
[EndTime "8:12:08 PDT"]
[Termination "Trovita84 won by resignation"]

1. e4 {[%clk 0:02:56.3]} 1... e6 {[%clk 0:02:59.3]} 2. d4 {[%clk 0:02:55.7]}
2... d5 {[%clk 0:02:58.3]} 3. exd5 {[%clk 0:02:55.8]} 3... exd5 {[%clk
0:02:57.3]} 4. Nf3 {[%clk 0:02:56]} 4... Bd6 {[%clk 0:02:57.7]} 5. Bd3 {[%clk
0:02:55.5]} 5... Ne7 {[%clk 0:02:57.8]} 6. c3 {[%clk 0:02:56]} 6... O-O {[%clk
0:02:58]} 7. O-O {[%clk 0:02:55.4]} 7... Bf5 {[%clk 0:02:56.5]} 8. Bg5 {[%clk
0:02:51.9]} 8... f6 {[%clk 0:02:49.3]} 9. Bh4 {[%clk 0:02:51.8]} 9... Qd7 {[%clk
0:02:48.9]} 10. Re1 {[%clk 0:02:49.6]} 10... Ng6 {[%clk 0:02:43.2]} 11. Bg3
{[%clk 0:02:49]} 11... c6 {[%clk 0:02:41.2]} 12. Bxf5 {[%clk 0:02:42.8]} 1-0

[Event "Early-Titled-Tuesday-Blitz-May-14-2024"]
[Site "Chess.com"]
[Date "2024.05.14"]
[Round "2"]
[White "Orujov2008"]
[Black "savitha1030"]
[Result "0-1"]
[WhiteElo "2751"]
[BlackElo "2506"]
[TimeControl "180+1"]
[EndTime "8:12:17 PDT"]
[Termination "savitha1030 won by checkmate"]

1. e4 {[%clk 0:03:00.9]} 1... c5 {[%clk 0:02:51]} 2. Nf3 {[%clk 0:03:00.5]} 2...
e6 {[%clk 0:02:51.1]} 3. d4 {[%clk 0:03:00.5]} 3... cxd4 {[%clk 0:02:51.5]} 4.
Nxd4 {[%clk 0:03:01.4]} 4... a6 {[%clk 0:02:51.5]} 5. Bd3 {[%clk 0:03:01]} 5...
Qc7 {[%clk 0:02:52.2]} 6. O-O {[%clk 0:03:00.6]} 6... Nc6 {[%clk 0:02:52.9]} 7.
Nxc6 {[%clk 0:03:00.4]} 7... bxc6 {[%clk 0:02:53.7]} 8. c4 {[%clk 0:02:59.9]}
8... Bb7 {[%clk 0:02:54.1]} 9. b3 {[%clk 0:02:57.1]} 9... Qe5 {[%clk 0:02:48.6]}
10. Qc2 {[%clk 0:02:27.8]} 10... Bd6 {[%clk 0:02:42.9]} 11. Nc3 {[%clk
0:02:28.7]} 11... Qxh2# {[%clk 0:02:42.6]} 0-1

[Event "Early-Titled-Tuesday-Blitz-May-14-2024"]
[Site "Chess.com"]
[Date "2024.05.14"]
[Round "2"]
[White "toninhojit"]
[Black "Nemegejas"]
[Result "1-0"]
[WhiteElo "2574"]
[BlackElo "2787"]
[TimeControl "180+1"]
[EndTime "8:12:27 PDT"]
[Termination "toninhojit won by resignation"]

1. d4 {[%clk 0:02:44]} 1... Nf6 {[%clk 0:02:59.5]} 2. c4 {[%clk 0:02:41.7]} 2...
e6 {[%clk 0:03:00.1]} 3. Nf3 {[%clk 0:02:41]} 3... d5 {[%clk 0:03:00.1]} 4. Nc3
{[%clk 0:02:40.2]} 4... c6 {[%clk 0:03:00.7]} 5. e3 {[%clk 0:02:39.3]} 5... Nbd7
{[%clk 0:03:01.1]} 6. Be2 {[%clk 0:02:38.8]} 6... Bd6 {[%clk 0:03:01.8]} 7. g4
{[%clk 0:02:38.3]} 7... Nxg4 {[%clk 0:02:54.9]} 8. Rg1 {[%clk 0:02:38]} 8...
Nxh2 {[%clk 0:02:55.5]} 9. Nxh2 {[%clk 0:02:35.8]} 9... Bxh2 {[%clk 0:02:56.1]}
10. Rxg7 {[%clk 0:02:36.2]} 10... Qf6 {[%clk 0:02:54.5]} 11. Rg2 {[%clk
0:02:34.8]} 11... Bc7 {[%clk 0:02:54.3]} 12. Qc2 {[%clk 0:02:35.1]} 12... Nb6
{[%clk 0:02:54.1]} 13. c5 {[%clk 0:02:30.6]} 13... Nd7 {[%clk 0:02:54.5]} 14.
Bd2 {[%clk 0:02:30.7]} 14... e5 {[%clk 0:02:53.5]} 15. O-O-O {[%clk 0:02:30.3]}
15... exd4 {[%clk 0:02:53.3]} 16. exd4 {[%clk 0:02:29.5]} 16... Nf8 {[%clk
0:02:51.9]} 17. Bg5 {[%clk 0:02:23.7]} 17... Bd7 {[%clk 0:02:52]} 18. Bxf6
{[%clk 0:02:23.2]} 1-0

[Event "Early-Titled-Tuesday-Blitz-May-14-2024"]
[Site "Chess.com"]
[Date "2024.05.14"]
[Round "2"]
[White "SidArun"]
[Black "DvaHrasta"]
[Result "0-1"]
[WhiteElo "2334"]
[BlackElo "2552"]
[TimeControl "180+1"]
[EndTime "8:13:25 PDT"]
[Termination "DvaHrasta won by resignation"]

1. d4 {[%clk 0:03:00.9]} 1... Nf6 {[%clk 0:02:58.7]} 2. Nc3 {[%clk 0:03:01]}
2... e6 {[%clk 0:02:54.2]} 3. Bf4 {[%clk 0:03:00.6]} 3... d5 {[%clk 0:02:51.7]}
4. Nb5 {[%clk 0:02:59.9]} 4... Bd6 {[%clk 0:02:51]} 5. Nxd6+ {[%clk 0:02:59.8]}
5... cxd6 {[%clk 0:02:51.9]} 6. e3 {[%clk 0:02:59.9]} 6... Nc6 {[%clk
0:02:51.7]} 7. Nf3 {[%clk 0:02:59.1]} 7... O-O {[%clk 0:02:50.9]} 8. h3 {[%clk
0:02:58.7]} 8... Re8 {[%clk 0:02:51.1]} 9. Bh2 {[%clk 0:02:58.2]} 9... e5 {[%clk
0:02:49.1]} 10. Be2 {[%clk 0:02:58.3]} 10... Qb6 {[%clk 0:02:46.1]} 11. Rb1
{[%clk 0:02:54.1]} 11... Bf5 {[%clk 0:02:45.8]} 12. Nh4 {[%clk 0:02:44.1]} 12...
Be6 {[%clk 0:02:35.6]} 13. c3 {[%clk 0:02:42.4]} 13... h6 {[%clk 0:02:31.3]} 14.
O-O {[%clk 0:02:40.5]} 14... g5 {[%clk 0:02:29]} 15. Nf3 {[%clk 0:02:39.9]}
15... Bf5 {[%clk 0:02:28.7]} 16. Bd3 {[%clk 0:02:35.2]} 16... Bxd3 {[%clk
0:02:27.1]} 17. Qxd3 {[%clk 0:02:31.9]} 17... e4 {[%clk 0:02:27.3]} 18. Qc2
{[%clk 0:02:31.9]} 18... exf3 {[%clk 0:02:25.2]} 19. Bxd6 {[%clk 0:02:31.6]}
19... fxg2 {[%clk 0:02:18]} 20. Kxg2 {[%clk 0:02:29.8]} 20... Nxd4 {[%clk
0:02:17.6]} 21. exd4 {[%clk 0:02:24.4]} 21... Qxd6 {[%clk 0:02:17.4]} 22. Qf5
{[%clk 0:02:21.2]} 22... Qe6 {[%clk 0:02:12.7]} 0-1

[Event "Early-Titled-Tuesday-Blitz-May-14-2024"]
[Site "Chess.com"]
[Date "2024.05.14"]
[Round "2"]
[White "ZachHKL"]
[Black "Timerkhanov"]
[Result "0-1"]
[WhiteElo "2311"]
[BlackElo "2708"]
[TimeControl "180+1"]
[EndTime "8:13:44 PDT"]
[Termination "Timerkhanov won by resignation"]

1. c4 {[%clk 0:03:00.9]} 1... c6 {[%clk 0:02:56.8]} 2. g3 {[%clk 0:03:00.2]}
2... d5 {[%clk 0:02:57.7]} 3. Bg2 {[%clk 0:03:00.8]} 3... Nf6 {[%clk 0:02:58.4]}
4. Nf3 {[%clk 0:03:01.3]} 4... g6 {[%clk 0:02:59]} 5. O-O {[%clk 0:03:01.3]}
5... Bg7 {[%clk 0:02:59.6]} 6. b3 {[%clk 0:03:01.1]} 6... O-O {[%clk 0:02:55.8]}
7. Bb2 {[%clk 0:03:01.2]} 7... a5 {[%clk 0:02:56.4]} 8. a3 {[%clk 0:02:57.8]}
8... a4 {[%clk 0:02:53.4]} 9. cxd5 {[%clk 0:02:57]} 9... Qxd5 {[%clk 0:02:52.8]}
10. bxa4 {[%clk 0:02:45.4]} 10... Qh5 {[%clk 0:02:47]} 11. Re1 {[%clk 0:02:37]}
11... Bh3 {[%clk 0:02:45.5]} 12. Bh1 {[%clk 0:02:36.8]} 12... Nbd7 {[%clk
0:02:46.1]} 13. d4 {[%clk 0:02:32.8]} 13... Nb6 {[%clk 0:02:42.3]} 14. Nc3
{[%clk 0:02:31.5]} 14... Nfd5 {[%clk 0:02:43]} 15. e4 {[%clk 0:02:20.2]} 15...
Nxc3 {[%clk 0:02:40.6]} 16. Bxc3 {[%clk 0:02:21.1]} 16... Nxa4 {[%clk
0:02:40.9]} 17. Bd2 {[%clk 0:02:18.2]} 17... c5 {[%clk 0:02:29.6]} 18. Be3
{[%clk 0:02:08.7]} 18... Bg4 {[%clk 0:02:26.6]} 19. Rb1 {[%clk 0:02:00.5]} 19...
Nc3 {[%clk 0:02:25.6]} 20. Qc2 {[%clk 0:01:55.1]} 20... Nxb1 {[%clk 0:02:25.5]}
21. Ne5 {[%clk 0:01:54.7]} 21... cxd4 {[%clk 0:02:22.4]} 22. Nxg4 {[%clk
0:01:52.4]} 0-1